bitfinex-derivatives/quotes_SOLF0:USTF0_20251006
["timestamp","ask_amount","ask_price","bid_price","bid_amount"]
[1759781247093,1.68,236.18,236.09,7.86]
[1759781247293,6.82440938,236.21,236.09,3.8101]
[1759781247491,6.82440938,236.21,236.07,70.54271545]
[1759781247492,6.82440938,236.21,236.1,7.86]
[1759781247694,3.01620938,236.21,236.1,7.86]
[1759781248591,3.8086,236.19,236.1,7.86]
[1759781249388,5.4886,236.19,236.1,7.86]
[1759781249994,3.8088,236.18,236.1,7.86]
[1759781253699,1.68,236.19,236.1,11.6698]
[1759781253898,1.68,236.19,236.11,7.86]
[1759781254402,0.73710074,236.24,236.14,7.86]
[1759781254403,1.68,236.22,236.14,7.86]
[1759781255604,5.4882,236.22,236.14,7.86]
[1759781255806,1.68,236.23,236.14,7.86]
[1759781256006,1.67,236.23,236.14,7.86]
[1759781256503,5.4785,236.2,236.14,7.86]
[1759781256712,1.67,236.18,236.08,7.63]
[1759781257011,3.8089,236.17,236.08,11.4402]
[1759781257707,3.8089,236.17,236.09,7.63]
[1759781258211,3.01620938,236.19,236.1,7.63]
[1759781258413,3.8085,236.2,236.1,7.63]
[1759781258707,3.8085,236.2,236.11,7.63]
[1759781259312,1.67,236.21,236.11,7.63]
[1759781259710,1.67,236.21,236.12,7.63]
[1759781262209,5.4783,236.21,236.12,7.63]
[1759781263118,7.40548896,236.21,236.12,7.63]
[1759781263304,5.4783,236.21,236.12,7.63]
[1759781263808,1.92718896,236.2,236.12,7.63]
[1759781265715,5.4783,236.21,236.12,7.63]
[1759781265916,1.92718896,236.2,236.12,7.63]
[1759781267208,5.4783,236.21,236.12,7.63]
[1759781267412,1.92718896,236.19,236.12,7.63]
[1759781267614,1.67,236.15,236.12,7.63]
[1759781268412,1.92718896,236.16,236.09,7.72]
[1759781268714,1.67,236.19,236.09,7.72]
[1759781268910,1.92718896,236.18,236.09,3.81]
[1759781269106,1.92718896,236.18,236.1,7.72]
[1759781272520,5.73598896,236.18,236.1,7.72]
[1759781272919,3.8088,236.18,236.1,7.72]
[1759781273116,1.92718896,236.17,236.1,7.72]
[1759781275323,1.92718896,236.17,236.1,11.26399685]
[1759781275722,1.92718896,236.17,236.11,7.72]
[1759781277217,3.59718896,236.17,236.11,7.72]
[1759781277724,3.59718896,236.14,236.11,7.72]
[1759781278024,7.40668896,236.14,236.11,7.72]
[1759781279614,3.8096,236.13,236.08,3.54399685]
[1759781279926,1.67,236.12,236.08,7.72]
[1759781280116,3.59718896,236.11,236.08,7.72]
[1759781280516,1.92718896,236.11,236.07,11.26399685]
[1759781280720,1.92718896,236.11,236.08,7.72]
[1759781280921,1.92718896,236.11,236.07,3.54399685]
[1759781281117,1.92718896,236.11,236.08,7.72]
[1759781281623,1.92718896,236.11,236.07,3.54399685]
[1759781282125,1.92718896,236.11,236.08,7.72]
[1759781282623,1.92718896,236.11,236.07,3.54399685]
[1759781282823,1.92718896,236.11,236.08,7.72]
[1759781283019,5.73658896,236.14,236.08,7.72]
[1759781283220,5.73658896,236.14,236.08,11.26399685]
[1759781283927,1.67,236.15,236.08,11.26399685]
[1759781284126,1.92718896,236.14,236.08,11.26399685]
[1759781284421,1.92718896,236.15,236.09,7.72]
[1759781285127,5.73648896,236.15,236.09,7.72]
[1759781285427,7.40648896,236.15,236.09,7.72]
[1759781287229,3.8095,236.14,236.09,7.72]
[1759781287526,3.8095,236.14,236.08,11.26399685]
[1759781287727,5.73668896,236.14,236.08,11.26399685]
[1759781287923,1.92718896,236.14,236.09,7.72]
[1759781288325,1.92718896,236.14,236.08,3.54399685]
[1759781288920,1.92718896,236.14,236.09,3.54399685]
[1759781289522,1.92718896,236.14,236.1,7.72]
[1759781289830,1.92718896,236.17,236.1,7.72]
[1759781290231,3.8087,236.18,236.1,7.72]
[1759781290523,1.92718896,236.16,236.1,7.72]
[1759781292029,1.92718896,236.16,236.1,11.26399685]
[1759781292431,1.92718896,236.16,236.1,3.54399685]
[1759781292629,1.92718896,236.16,236.11,7.72]
[1759781292835,1.67,236.15,236.08,11.26399685]
[1759781293331,1.92718896,236.13,236.08,11.26399685]
[1759781293533,1.92718896,236.13,236.09,7.72]
[1759781293734,1.92718896,236.13,236.08,3.54399685]
[1759781293931,3.8094,236.14,236.09,7.72]
[1759781295233,3.8094,236.14,236.08,3.54399685]
[1759781295733,3.8094,236.14,236.09,7.72]
[1759781295928,3.8094,236.14,236.08,3.54399685]
[1759781296133,3.8094,236.14,236.09,7.72]
[1759781296335,3.8094,236.14,236.08,3.54399685]
[1759781296536,3.8094,236.14,236.09,7.72]
[1759781296740,3.8094,236.14,236.08,3.54399685]
[1759781297038,3.8094,236.14,236.09,7.72]
[1759781297232,3.8094,236.14,236.08,3.54399685]
[1759781297429,3.8094,236.14,236.09,7.72]
[1759781297640,3.8094,236.14,236.08,3.54399685]
[1759781297840,3.8091,236.16,236.09,3.54399685]
[1759781298037,3.8091,236.16,236.1,7.72]
[1759781299444,1.92718896,236.18,236.1,7.72]
[1759781299944,1.92718896,236.18,236.11,7.5]
[1759781300839,7.40578896,236.19,236.11,7.5]
[1759781304443,3.8088,236.18,236.11,7.5]
[1759781306240,1.68,236.15,236.11,7.5]
[1759781306445,5.73618896,236.16,236.11,7.5]
[1759781306647,7.41618896,236.16,236.1,11.04399685]
[1759781306948,1.68,236.12,236.09,3.54399685]
[1759781307244,1.92718896,236.14,236.08,11.04399685]
[1759781307446,1.68,236.13,236.09,11.04399685]
[1759781307646,1.68,236.13,236.09,7.5]
[1759781309145,5.73608896,236.17,236.1,7.5]
[1759781310950,3.8089,236.17,236.1,7.5]
[1759781311153,5.73608896,236.17,236.1,7.5]
[1759781312151,5.73608896,236.17,236.1,11.04359677]
[1759781312758,1.68,236.18,236.11,7.5]
[1759781312953,1.68,236.21,236.12,3.54359677]
[1759781313150,1.68,236.21,236.13,7.5]
[1759781313456,1.92718896,236.19,236.13,7.5]
[1759781315548,3.60718896,236.19,236.13,7.5]
[1759781321556,1.68,236.19,236.13,7.5]
[1759781321760,1.92718896,236.18,236.12,7.64]
[1759781322356,1.67,236.2,236.12,7.64]
[1759781322557,1.92718896,236.18,236.12,7.64]
[1759781324759,1.92718896,236.18,236.12,11.18270811]
[1759781325157,1.67,236.2,236.13,7.64]
[1759781326560,1.67,236.2,236.13,11.4494]
[1759781327061,3.8086,236.19,236.13,7.64]
[1759781328456,1.67,236.2,236.13,7.64]
[1759781331864,6.13586015,236.23,236.13,7.64]
[1759781333262,9.14762558,236.23,236.13,7.64]
[1759781333566,1.05835751,236.22,236.13,11.4494]
[1759781333865,1.05835751,236.22,236.14,7.6]
[1759781334464,4.45586015,236.22,236.14,7.6]
[1759781336461,8.26406015,236.22,236.14,7.6]
[1759781337369,1.68,236.21,236.14,7.6]
[1759781337571,3.01176543,236.2,236.14,7.6]
[1759781338462,4.45586015,236.2,236.14,7.6]
[1759781338668,3.8084,236.2,236.14,7.6]
[1759781341871,3.8087,236.19,236.13,7.6]
[1759781342075,2.73839511,236.21,236.13,7.6]
[1759781342368,1.68,236.21,236.13,7.6]
[1759781342874,7.46766318,236.23,236.13,7.6]
[1759781343070,3.39750264,236.22,236.13,7.6]
[1759781343278,3.8081,236.22,236.13,11.4094]
[1759781343473,7.20655423,236.22,236.14,7.6]
[1759781343777,8.26494934,236.22,236.14,7.6]
[1759781345477,1.05836352,236.21,236.14,7.6]
[1759781345678,8.26491775,236.22,236.14,7.6]
[1759781348478,9.94491775,236.22,236.14,7.6]
[1759781348679,1.05836352,236.21,236.14,7.6]
[1759781348880,3.39845423,236.22,236.15,3.5456502]
[1759781349078,1.68,236.24,236.15,7.6]
[1759781349478,3.808,236.23,236.15,7.6]
[1759781350274,2.73828832,236.24,236.16,7.6]
[1759781350478,1.68,236.24,236.16,7.6]
[1759781351475,3.808,236.23,236.16,7.6]
[1759781352675,4.86588832,236.25,236.18,7.6]
[1759781352880,8.26434255,236.25,236.18,7.6]
[1759781353381,3.8079,236.24,236.18,7.6]
[1759781353581,4.86618832,236.24,236.18,7.6]
[1759781355784,1.05828832,236.24,236.18,7.6]
[1759781356082,6.13674255,236.25,236.18,7.6]
[1759781356384,1.68,236.25,236.18,7.6]
[1759781357186,3.808,236.23,236.17,11.4088]
[1759781357580,1.68,236.2,236.16,3.5456502]
[1759781357785,1.68,236.22,236.14,11.1456502]
[1759781357981,1.68,236.21,236.14,11.1456502]
[1759781358182,1.68,236.21,236.14,7.6]
[1759781360491,3.8082,236.21,236.14,7.6]
[1759781361387,6.18835867,236.22,236.14,7.6]
[1759781361785,3.8083,236.21,236.14,7.6]
[1759781362391,3.8083,236.21,236.15,7.22]
[1759781362590,4.86665801,236.21,236.15,7.22]
[1759781363790,3.8083,236.21,236.15,7.22]
[1759781366192,1.67,236.22,236.15,7.22]
[1759781367593,5.4787,236.19,236.13,3.5505675]
[1759781368299,5.4787,236.19,236.14,7.22]
[1759781368795,1.67,236.17,236.13,3.5505675]
[1759781368997,1.67,236.15,236.1,3.5505675]
[1759781369294,1.67,236.15,236.07,3.5505675]
[1759781369498,3.81,236.11,236.07,3.5505675]
[1759781369690,1.67,236.14,236.07,7.22]
[1759781371097,6.18864516,236.14,236.07,7.22]
[1759781371891,1.67,236.13,236.04,3.5505675]
[1759781372196,5.4803,236.08,236.02,3.5505675]
[1759781372402,1.67,236.08,236.01,3.5505675]
[1759781372595,1.67,236.08,236.02,7.22]
[1759781372796,3.8106,236.07,236.02,7.22]
[1759781373096,3.8106,236.07,236.01,3.5505675]
[1759781373492,3.8106,236.07,236.02,7.22]
[1759781374001,1.67,236.08,236.02,7.22]
[1759781374800,3.8106,236.06,236.0,3.5505675]
[1759781375002,3.8106,236.06,236.01,7.22]
[1759781375301,1.67,236.08,236.01,7.22]
[1759781375704,5.4805,236.08,236.01,7.22]
[1759781376203,6.82166543,236.11,236.01,7.22]
[1759781376705,3.01176543,236.11,236.01,7.22]
[1759781376894,3.01176543,236.11,236.02,7.83]
[1759781377600,3.8101,236.1,236.02,7.83]
[1759781378000,3.01176543,236.11,236.02,7.83]
[1759781378703,1.67,236.1,236.02,7.83]
[1759781378901,3.8106,236.07,235.99,7.3621675]
[1759781379204,3.8106,236.07,236.0,7.83]
[1759781379599,1.67,236.08,236.0,7.83]
[1759781380006,3.01176543,236.07,236.0,7.83]
[1759781380701,1.67,236.06,236.0,7.83]
[1759781381608,3.811,236.04,236.0,7.83]
[1759781381802,5.481,236.04,235.96,3.5505675]
[1759781382003,5.481,236.04,235.97,7.83]
[1759781382603,3.811,236.04,235.97,7.83]
[1759781383707,3.8113,236.02,235.97,7.83]
[1759781384005,3.8113,236.02,235.96,7.83]
[1759781387905,1.67,236.07,235.96,7.83]
[1759781389609,3.8109,236.05,235.97,7.81]
[1759781390112,3.8109,236.05,235.98,5.7417384]
[1759781390312,3.8109,236.05,235.99,7.81]
[1759781390713,1.67,236.07,235.99,7.81]
[1759781392711,5.4806,236.07,235.99,7.81]
[1759781393414,3.8106,236.07,235.99,7.81]
[1759781394816,3.8107,236.06,235.99,7.81]
[1759781399618,3.8109,236.05,235.99,7.81]
[1759781401109,3.8111,236.04,235.99,7.81]
[1759781401311,1.69,236.03,235.99,7.81]
[1759781401618,1.69,236.03,235.95,7.81]
[1759781401817,3.8113,236.02,235.95,7.81]
[1759781402017,1.69,236.03,235.95,7.81]
[1759781402215,1.9298384,236.01,235.95,7.81]
[1759781403317,1.69,236.03,235.95,7.81]
[1759781403518,1.9298384,236.01,235.95,7.81]
[1759781403720,5.7414384,236.01,235.95,7.81]
[1759781404119,5.5019,235.99,235.95,7.81]
[1759781404317,1.69,235.99,235.94,7.81]
[1759781404816,1.69,235.99,235.93,103.78]
[1759781405216,1.69,236.03,235.94,7.81]
[1759781405418,1.9298384,236.02,235.94,7.81]
[1759781405617,5.7412384,236.02,235.94,7.81]
[1759781405915,1.9298384,235.99,235.94,7.81]
[1759781406111,1.69,235.98,235.94,7.81]
[1759781406317,1.9298384,235.99,235.94,7.81]
[1759781406818,1.69,235.97,235.9,3.5505675]
[1759781407219,1.9298384,235.96,235.9,3.5505675]
[1759781407420,1.9298384,235.96,235.89,11.3605675]
[1759781408226,5.7421384,235.96,235.89,11.3605675]
[1759781408430,5.7421384,235.96,235.89,7.81]
[1759781409821,1.9298384,235.96,235.89,7.81]
[1759781411121,1.9298384,235.96,235.89,11.3636969]
[1759781411427,1.9298384,235.96,235.89,7.81]
[1759781412124,1.9298384,235.96,235.89,11.3636969]
[1759781412421,1.9298384,235.96,235.89,3.5536969]
[1759781412625,1.9298384,235.96,235.9,7.81]
[1759781413131,1.9298384,235.96,235.9,11.3636969]
[1759781413828,1.9298384,235.96,235.9,7.81]
[1759781414419,3.8117,236.0,235.91,7.81]
[1759781415026,5.7417384,235.98,235.91,7.81]
[1759781416428,1.69,235.96,235.91,7.81]
[1759781416630,1.69,235.98,235.89,7.81]
[1759781416928,1.9298384,235.94,235.88,7.81]
[1759781418233,3.6198384,235.93,235.87,7.26]
[1759781420935,7.4327384,235.93,235.87,7.26]
[1759781421828,3.813,235.92,235.84,7.3677969]
[1759781422029,3.813,235.92,235.85,7.26]
[1759781427435,5.7428384,235.92,235.85,7.26]
[1759781429039,3.8132,235.91,235.85,7.26]
[1759781429435,1.9298384,235.9,235.81,22.17525407]
[1759781429633,1.9298384,235.9,235.82,7.26]
[1759781430033,3.8132,235.91,235.82,7.26]
[1759781430239,1.9298384,235.9,235.82,7.26]
[1759781431541,1.9298384,235.9,235.82,3.8144]
[1759781431741,1.9298384,235.9,235.83,7.26]
[1759781432642,3.8132,235.91,235.83,7.26]
[1759781433246,3.8133,235.9,235.83,7.26]
[1759781436343,1.69,235.92,235.85,7.47]
[1759781436538,1.9298384,235.94,235.85,7.47]
[1759781436946,3.8128,235.93,235.85,7.47]
[1759781438746,5.5028,235.93,235.85,7.47]
[1759781442144,3.8124,235.96,235.86,3.8137]
[1759781442448,1.69,235.95,235.87,7.47]
[1759781442848,5.5025,235.95,235.87,7.47]
[1759781443746,3.8127,235.94,235.87,7.47]
[1759781444849,1.69,235.95,235.87,7.47]
[1759781445050,3.6198384,235.95,235.87,7.47]
[1759781445852,1.69,235.95,235.87,7.47]
[1759781448051,3.8124,235.96,235.87,7.47]
[1759781448348,1.69,235.97,235.88,7.67]
[1759781451154,1.69,235.97,235.88,11.4834]
[1759781451354,1.69,235.97,235.89,7.67]
[1759781452354,3.39756376,236.02,235.89,3.01731123]
[1759781452559,1.69,236.06,235.94,7.67]
[1759781452959,18.05148867,236.05,235.96,3.8121]
[1759781453160,18.05148867,236.05,235.97,7.67]
[1759781453764,3.8111,236.04,235.97,7.67]
[1759781459761,14.24058867,236.05,235.98,7.67]
[1759781460359,3.01731123,236.03,235.93,7.67]
[1759781460559,1.69,236.02,235.93,7.67]
[1759781461665,3.8114,236.01,235.93,7.67]
[1759781466870,1.69,236.02,235.94,3.8126]
[1759781467271,1.69,236.02,235.9,3.01731123]
[1759781467471,1.69,236.02,235.91,7.67]
[1759781467772,14.24058867,236.05,235.91,7.67]
[1759781468369,1.69,236.04,235.91,7.67]
[1759781468672,1.69,236.04,235.96,7.67]
[1759781469972,5.5011,236.04,235.96,7.67]
[1759781472771,1.69,236.03,235.89,4.7180671]
[1759781473073,3.01731123,236.04,235.9,7.67]
[1759781473766,1.69,236.02,235.9,7.67]
[1759781473972,3.01731123,236.04,235.9,7.67]
[1759781474171,1.69,236.03,235.9,7.67]
[1759781474374,1.69,236.02,235.9,7.67]
[1759781474567,3.8119,235.99,235.9,11.4831]
[1759781474773,1.69,235.98,235.9,11.4831]
[1759781476378,3.01731123,235.96,235.9,7.67]
[1759781476578,1.69,235.95,235.86,7.67]
[1759781477283,3.8129,235.93,235.86,7.67]
[1759781478779,3.8132,235.91,235.86,7.67]
[1759781478980,1.7,235.9,235.82,7.58]
[1759781479191,3.01731123,235.88,235.82,7.58]
[1759781479686,6.83091123,235.88,235.82,7.58]
[1759781480081,1.7,235.9,235.82,7.58]
[1759781481182,1.7,235.86,235.77,7.58]
[1759781481785,3.8142,235.84,235.77,7.58]
[1759781481977,1.7,235.86,235.77,7.58]
[1759781483387,3.814,235.85,235.77,7.58]
[1759781489193,1.7,235.84,235.77,7.58]
[1759781489492,3.8137,235.88,235.78,7.58]
[1759781490389,3.8139,235.86,235.78,7.58]
[1759781496191,3.01731123,236.02,235.84,7.52]
[1759781496397,1.7,235.99,235.84,7.52]
[1759781496587,1.7,235.97,235.84,7.52]
[1759781496787,3.8126,235.94,235.85,7.52]
[1759781497594,3.8129,235.93,235.85,7.52]
[1759781497795,1.7,235.94,235.85,7.52]
[1759781498295,5.5131,235.91,235.85,7.52]
[1759781499291,3.8131,235.91,235.85,7.52]
[1759781500098,1.7,235.89,235.85,7.52]
[1759781500287,1.7,235.89,235.83,7.52]
[1759781500491,3.8133,235.9,235.83,7.52]
[1759781502793,3.8137,235.88,235.82,42.9]
[1759781502998,3.8137,235.88,235.82,50.42]
[1759781504398,3.8137,235.88,235.82,7.52]
[1759781504703,1.7,235.87,235.79,7.52]
[1759781505503,3.8143,235.84,235.75,7.52]
[1759781507101,5.74750329,235.84,235.75,11.3356]
[1759781507403,5.74750329,235.84,235.76,7.52]
[1759781507803,3.63320329,235.81,235.71,34.86]
[1759781508008,3.63320329,235.81,235.72,7.52]
[1759781509007,1.7,235.81,235.72,7.52]
[1759781509203,1.7,235.81,235.73,3.816]
[1759781509611,1.7,235.81,235.74,7.29]
[1759781510108,1.93320329,235.83,235.74,7.29]
[1759781510311,3.8147,235.81,235.74,7.29]
[1759781514507,3.63320329,235.8,235.74,7.29]
[1759781515715,7.44820329,235.8,235.74,7.29]
[1759781517213,3.63320329,235.8,235.74,7.29]
[1759781517414,1.93320329,235.78,235.72,7.29]
[1759781518315,3.63320329,235.8,235.72,7.29]
[1759781519716,7.44800329,235.8,235.72,7.29]
[1759781520115,1.93320329,235.79,235.72,7.29]
[1759781521521,3.8152,235.78,235.72,7.29]
[1759781523121,5.5152,235.78,235.72,7.29]
[1759781524525,3.8155,235.77,235.72,7.29]
[1759781524724,1.7,235.76,235.72,7.29]
[1759781524920,1.7,235.76,235.7,7.29]
[1759781525524,3.63320329,235.76,235.7,7.29]
[1759781525724,1.7,235.76,235.7,7.29]
[1759781525927,3.63320329,235.76,235.7,7.29]
[1759781526226,1.93320329,235.76,235.7,7.29]
[1759781526626,3.8155,235.77,235.7,7.29]
[1759781526826,5.74870329,235.77,235.7,7.29]
[1759781527427,1.93320329,235.74,235.7,7.29]
[1759781527623,3.63320329,235.74,235.65,7.29]
[1759781527828,1.7,235.77,235.65,7.29]
[1759781528125,1.93320329,235.76,235.65,7.29]
[1759781528326,1.93320329,235.76,235.67,3.8169]
[1759781528624,1.93320329,235.76,235.68,7.29]
[1759781528828,1.7,235.72,235.62,1.93320329]
[1759781529029,1.7,235.72,235.63,7.29]
[1759781529221,1.7,235.72,235.64,7.29]
[1759781529825,5.5163,235.72,235.64,7.29]
[1759781530132,1.93320329,235.7,235.64,7.29]
[1759781531533,5.74980329,235.7,235.64,7.29]
[1759781532122,1.93320329,235.67,235.59,18.15088511]
[1759781532332,1.93320329,235.64,235.55,7.29]
[1759781533026,59.3672,235.71,235.49,7.29]
[1759781533027,1.7,235.6,235.49,7.29]
[1759781533334,1.93320329,235.57,235.49,7.29]
[1759781534432,1.93320329,235.59,235.49,7.29]
[1759781535531,1.93320329,235.56,235.49,7.29]
[1759781536830,1.93320329,235.53,235.43,3.8207]
[1759781537026,1.93320329,235.53,235.44,7.29]
[1759781537436,1.93320329,235.53,235.46,7.29]
[1759781538229,1.93320329,235.53,235.47,3.8201]
[1759781538434,1.93320329,235.53,235.48,7.66]
[1759781539131,1.93320329,235.55,235.48,7.66]
[1759781540737,1.93320329,235.57,235.5,7.66]
[1759781541131,3.63320329,235.6,235.5,7.66]
[1759781541437,3.63320329,235.6,235.52,7.66]
[1759781543533,3.63320329,235.6,235.52,3.8194]
[1759781543731,3.63320329,235.6,235.53,7.66]
[1759781545532,7.45130329,235.6,235.53,7.66]
[1759781546435,3.63320329,235.6,235.53,7.66]
[1759781546629,3.63320329,235.6,235.49,1.93320329]
[1759781546630,1.7,235.53,235.43,7.66]
[1759781546834,1.93320329,235.51,235.43,7.66]
[1759781547329,3.63320329,235.47,235.36,7.66]
[1759781547533,1.7,235.47,235.36,7.66]
[1759781547736,1.7,235.51,235.39,7.66]
[1759781548036,1.93320329,235.41,235.32,7.66]
[1759781548634,1.93320329,235.41,235.34,7.66]
[1759781548941,1.93320329,235.35,235.25,7.66]
[1759781549434,1.93320329,235.35,235.2,11.93556602]
[1759781549435,1.93320329,235.28,235.17,7.66]
[1759781549640,1.93320329,235.28,235.14,59.5089]
[1759781549641,1.93320329,235.28,235.2,7.66]
[1759781550135,1.7,235.32,235.2,7.66]
[1759781550435,1.93320329,235.31,235.22,7.66]
[1759781550638,1.7,235.37,235.24,7.66]
[1759781550639,1.93320329,235.34,235.24,7.66]
[1759781550840,1.93320329,235.34,235.28,7.66]
[1759781551038,59.4242,235.48,235.28,7.66]
[1759781551242,1.93320329,235.4,235.28,7.66]
[1759781551438,1.93320329,235.4,235.31,1.93320329]
[1759781551638,1.93320329,235.4,235.32,7.66]
[1759781552044,1.93320329,235.43,235.32,7.66]
[1759781552440,1.93320329,235.43,235.32,9.59320329]
[1759781552640,1.93320329,235.43,235.33,7.66]
[1759781552842,3.63320329,235.34,235.21,7.66]
[1759781553040,1.93320329,235.3,235.21,7.66]
[1759781553243,1.7,235.34,235.21,7.66]
[1759781553445,1.93320329,235.31,235.21,7.66]
[1759781554137,1.93320329,235.31,235.22,3.8242]
[1759781555535,1.7,235.34,235.22,3.8242]
[1759781555740,1.93320329,235.32,235.22,3.8242]
[1759781556640,1.93320329,235.32,235.21,7.66]
[1759781556845,1.93320329,235.32,235.21,97.3]
[1759781557849,1.93320329,235.31,235.21,101.1244]
[1759781558048,3.8225,235.33,235.21,11.4844]
[1759781558247,1.93320329,235.31,235.21,11.4844]
[1759781559345,1.93320329,235.31,235.21,7.66]
[1759781559737,5.75600329,235.31,235.21,7.66]
[1759781560141,1.93320329,235.28,235.21,7.66]
[1759781564144,1.93320329,235.3,235.21,7.66]
[1759781564341,1.71,235.34,235.21,7.66]
[1759781564651,1.93320329,235.32,235.21,9.59320329]
[1759781564851,1.93320329,235.32,235.22,11.3142]
[1759781565948,1.93320329,235.29,235.22,7.49]
[1759781568254,3.66320329,235.29,235.22,7.49]
[1759781568458,1.93320329,235.25,235.2,7.46]
[1759781568650,1.93320329,235.25,235.19,3.8247]
[1759781569155,1.73,235.29,235.2,7.46]
[1759781569356,3.03507947,235.27,235.2,7.46]
[1759781570052,1.73,235.29,235.2,7.46]
[1759781570357,3.03507947,235.29,235.2,7.46]
[1759781571456,4.76507947,235.29,235.2,7.46]
[1759781572052,1.73,235.31,235.2,7.46]
[1759781572252,4.76507947,235.28,235.2,7.46]
[1759781573556,1.73,235.27,235.13,15.78662621]
[1759781573754,3.03507947,235.24,235.14,7.46]
[1759781573951,1.73,235.25,235.14,7.46]
[1759781574152,3.03507947,235.23,235.14,7.46]
[1759781575858,3.03507947,235.19,235.08,7.46]
[1759781576255,1.73,235.21,235.08,7.46]
[1759781576551,3.03507947,235.22,235.14,7.46]
[1759781576964,3.03507947,235.24,235.14,7.46]
[1759781577456,3.03507947,235.26,235.14,7.46]
[1759781577660,1.73,235.29,235.19,7.46]
[1759781578158,3.03507947,235.26,235.19,7.46]
[1759781579564,3.8235,235.25,235.19,7.46]
[1759781580370,3.03507947,235.26,235.19,7.46]
[1759781581266,1.73,235.28,235.19,7.46]
[1759781582064,3.03507947,235.3,235.19,7.46]
[1759781583566,3.03507947,235.3,235.2,3.8242]
[1759781585062,3.03507947,235.31,235.2,3.8242]
[1759781586161,1.73,235.32,235.2,3.8242]
[1759781586362,3.03507947,235.3,235.21,7.46]
[1759781586567,1.73,235.32,235.21,7.46]
[1759781586766,4.76507947,235.32,235.21,7.46]
[1759781587266,4.76507947,235.32,235.22,7.46]
[1759781587566,3.03507947,235.32,235.22,7.46]
[1759781588155,18.06777496,235.38,235.18,7.46]
[1759781588156,1.73,235.27,235.18,7.46]
[1759781588864,5.5532,235.27,235.18,7.46]
[1759781590164,4.76507947,235.24,235.13,7.46]
[1759781590766,3.03507947,235.2,235.13,7.46]
[1759781592358,6.85937947,235.2,235.13,7.46]
[1759781592559,6.85937947,235.2,235.09,20.22326622]
[1759781592560,3.03507947,235.2,235.09,20.22326622]
[1759781593661,3.8245,235.19,235.09,20.22326622]
[1759781596174,3.8247,235.17,235.09,20.22326622]
[1759781596870,1.73,235.18,235.09,20.22326622]
[1759781598972,4.76507947,235.18,235.1,3.8258]
[1759781600669,1.73,235.22,235.11,7.47]
[1759781601274,5.5539,235.22,235.11,7.47]
[1759781602570,5.5539,235.22,235.12,3.8255]
[1759781602771,5.5539,235.22,235.11,7.47]
[1759781604577,1.73,235.31,235.1,7.47]
[1759781604769,1.73,235.27,235.1,7.47]
[1759781604968,1.73,235.27,235.11,7.47]
[1759781605166,1.73,235.27,235.13,7.47]
[1759781606177,3.8235,235.25,235.13,11.2952]
[1759781607777,3.8235,235.25,235.13,3.8252]
[1759781607978,3.8235,235.25,235.14,7.47]
[1759781608376,3.8235,235.25,235.15,3.825]
[1759781609581,5.5531,235.27,235.15,3.825]
[1759781609778,5.5531,235.27,235.17,7.47]
[1759781611278,1.73,235.27,235.17,7.47]